bitfinex-derivatives/quotes_SOLF0:USTF0_20250509
["timestamp","ask_amount","ask_price","bid_price","bid_amount"]
[1746773089857,40.1111,163.66,163.65,1.0]
[1746773091456,34.0,163.66,163.65,1.0]
[1746773092261,40.1111,163.66,163.65,1.0]
[1746773094461,34.0,163.66,163.65,1.0]
[1746773095965,40.1111,163.66,163.65,1.0]
[1746773096862,6.1111,163.66,163.65,1.0]
[1746773097162,6.1108,163.67,163.65,1.0]
[1746773097759,6.1105,163.68,163.65,1.0]
[1746773098665,6.1107,163.67,163.65,1.0]
[1746773098858,34.0,163.69,163.65,1.0]
[1746773099162,6.1111,163.66,163.65,1.0]
[1746773106064,6.1127,163.62,163.59,2.0646]
[1746773106262,33.76,163.64,163.53,41.81127741]
[1746773106464,33.76,163.63,163.53,45.66967741]
[1746773106667,6.113,163.61,163.58,6.1138]
[1746773106868,33.76,163.63,163.53,45.66967741]
[1746773107063,33.76,163.63,163.56,6.06547741]
[1746773107263,33.76,163.63,163.61,6.1127]
[1746773107562,33.76,163.63,163.56,6.06547741]
[1746773107768,33.76,163.63,163.62,6.1126]
[1746773108370,33.76,163.65,163.53,39.6042]
[1746773108570,33.76,163.65,163.55,6.06547741]
[1746773108870,39.8717,163.65,163.55,6.06547741]
[1746773112372,39.8717,163.65,163.61,6.1127]
[1746773112971,6.1119,163.64,163.6,6.1132]
[1746773113469,39.8716,163.65,163.61,6.1127]
[1746773114567,39.8716,163.65,163.55,6.06547741]
[1746773114568,33.76,163.67,163.55,6.06547741]
[1746773115072,39.871,163.67,163.62,6.1122]
[1746773115271,33.76,163.67,163.62,6.1122]
[1746773115570,6.1111,163.66,163.62,6.1123]
[1746773116470,39.8708,163.67,163.63,6.1122]
[1746773116674,33.76,163.67,163.59,39.8209]
[1746773117967,33.76,163.67,163.65,6.1111]
[1746773118372,33.76,163.71,163.61,6.06547741]
[1746773118874,33.76,163.71,163.59,6.1409]
[1746773119074,33.76,163.71,163.59,39.8009]
[1746773119577,6.1114,163.66,163.59,39.8009]
[1746773119769,33.76,163.71,163.59,39.8009]
[1746773120278,6.1119,163.64,163.61,6.1129]
[1746773120471,33.76,163.71,163.61,6.1129]
[1746773120779,6.1118,163.65,163.61,6.1129]
[1746773120967,33.76,163.71,163.61,6.1129]
[1746773121775,33.76,163.71,163.62,6.1126]
[1746773123070,6.1115,163.65,163.62,6.1126]
[1746773124675,6.1115,163.65,163.61,6.1129]
[1746773124875,6.1119,163.64,163.61,6.1129]
[1746773125078,6.1119,163.64,163.6,6.1132]
[1746773125978,6.1119,163.64,163.59,39.8009]
[1746773125979,6.1122,163.63,163.59,45.9145]
[1746773126169,6.1122,163.63,163.59,12.2545]
[1746773126370,6.1122,163.63,163.59,6.1409]
[1746773126978,6.1127,163.62,163.59,6.1409]
[1746773129177,6.1124,163.63,163.59,12.2544]
[1746773129380,33.76,163.66,163.59,12.2544]
[1746773129580,33.76,163.66,163.59,6.1409]
[1746773129781,6.1128,163.62,163.59,6.1409]
[1746773130381,6.1124,163.63,163.59,12.2546]
[1746773130581,33.76,163.66,163.59,12.2546]
[1746773131581,6.1125,163.63,163.59,12.2546]
[1746773131782,33.76,163.66,163.59,12.2546]
[1746773132083,6.1126,163.63,163.59,12.2546]
[1746773132584,33.76,163.66,163.59,13.2546]
[1746773132882,33.76,163.66,163.6,6.1133]
[1746773133181,6.1123,163.63,163.6,6.1133]
[1746773134484,6.1126,163.62,163.59,11.184]
[1746773134683,6.1126,163.62,163.59,7.1136]
[1746773134983,33.76,163.66,163.59,7.1136]
[1746773135183,6.1124,163.63,163.6,6.1133]
[1746773136387,6.1126,163.62,163.59,7.1134]
[1746773137087,6.1123,163.63,163.6,6.1133]
[1746773137288,33.76,163.66,163.59,1.0]
[1746773137698,6.1133,163.6,163.59,1.0]
[1746773139384,6.1148,163.56,163.53,10.2048]
[1746773140487,6.1145,163.57,163.54,6.1155]
[1746773142191,6.115,163.56,163.52,6.116]
[1746773142393,33.52,163.61,163.51,33.48]
[1746773142591,39.58547741,163.61,163.51,33.48]
[1746773142787,6.1155,163.55,163.51,6.1164]
[1746773143094,6.1155,163.55,163.5,37.4572]
[1746773143292,6.1155,163.55,163.5,3.9772]
[1746773143493,6.1155,163.55,163.5,37.4572]
[1746773144693,6.1155,163.55,163.52,6.1163]
[1746773145492,39.58547741,163.61,163.52,6.1163]
[1746773145696,39.58547741,163.61,163.53,6.1158]
[1746773146397,33.52,163.61,163.54,6.1155]
[1746773146592,33.52,163.61,163.5,43.52267741]
[1746773147096,33.52,163.61,163.53,6.06547741]
[1746773147398,33.52,163.61,163.59,6.1137]
[1746773147592,33.54,163.65,163.59,6.1137]
[1746773147995,6.1125,163.63,163.59,6.1137]
[1746773148196,33.54,163.65,163.58,6.1139]
[1746773148999,6.1127,163.62,163.59,6.1137]
[1746773150299,6.1127,163.62,163.58,6.1139]
[1746773152598,6.1127,163.62,163.59,6.1136]
[1746773152803,6.1127,163.62,163.56,5.8037]
[1746773153004,6.1127,163.62,163.58,6.1141]
[1746773153803,6.1123,163.63,163.58,6.1141]
[1746773154107,6.1123,163.63,163.59,6.1137]
[1746773155007,6.112,163.64,163.6,6.1133]
[1746773155408,6.112,163.64,163.56,5.8037]
[1746773156310,6.112,163.64,163.6,6.1131]
[1746773158006,6.112,163.64,163.56,5.8037]
[1746773158913,6.112,163.64,163.6,6.1131]
[1746773160607,33.54,163.65,163.61,6.1129]
[1746773160812,6.1122,163.63,163.56,5.8037]
[1746773162014,6.1122,163.63,163.6,6.1131]
[1746773163211,33.54,163.65,163.53,6.06547741]
[1746773163517,33.54,163.65,163.53,33.3]
[1746773163710,33.54,163.65,163.55,6.1151]
[1746773163711,6.114,163.59,163.55,6.1151]
[1746773163916,33.54,163.59,163.55,6.1151]
[1746773164115,39.60547741,163.59,163.51,6.1041]
[1746773164310,39.60547741,163.59,163.5,33.3]
[1746773165217,33.54,163.59,163.5,33.3]
[1746773165917,6.1145,163.57,163.5,33.3]
[1746773166518,6.1145,163.57,163.54,6.1154]
[1746773167519,6.1142,163.58,163.54,6.1154]
[1746773168819,6.1145,163.57,163.54,6.1154]
[1746773175830,6.1145,163.57,163.55,6.1152]
[1746773176631,6.1145,163.57,163.54,6.1155]
[1746773185730,6.1149,163.56,163.53,6.1158]
[1746773186225,6.1146,163.57,163.54,6.1155]
[1746773186936,6.1149,163.56,163.54,6.1155]
[1746773187635,6.1146,163.57,163.54,6.1155]
[1746773188936,6.1149,163.56,163.53,6.1158]
[1746773189337,33.54,163.59,163.51,1.8999]
[1746773189538,6.1147,163.57,163.53,6.1158]
[1746773190532,6.115,163.56,163.53,6.1158]
[1746773193537,6.1153,163.55,163.51,6.1164]
[1746773194338,6.1156,163.54,163.51,6.1164]
[1746773194841,6.1162,163.53,163.5,6.1169]
[1746773195233,3.87858653,163.54,163.46,42.96878653]
[1746773195637,6.1165,163.52,163.48,6.1176]
[1746773195837,6.1165,163.52,163.46,6.0502]
[1746773196136,39.10218415,163.57,163.46,39.0902]
[1746773196339,6.1162,163.53,163.49,6.1172]
[1746773197330,39.10218415,163.57,163.49,6.1172]
[1746773197537,6.1164,163.52,163.49,6.1172]
[1746773198239,6.1161,163.53,163.49,6.1172]
[1746773199040,6.1166,163.52,163.48,6.1177]
[1746773201943,6.1166,163.52,163.46,6.0502]
[1746773201944,6.1169,163.51,163.47,6.1181]
[1746773202244,33.04,163.54,163.47,6.1181]
[1746773202537,6.06218415,163.51,163.41,561.24]
[1746773202743,6.06218415,163.51,163.41,594.22]
[1746773202943,32.98,163.52,163.41,594.22]
[1746773203135,32.98,163.52,163.42,1.9091]
[1746773203553,6.1172,163.5,163.46,6.1185]
[1746773203941,32.98,163.52,163.46,6.1185]
[1746773204245,6.1168,163.51,163.46,6.1185]
[1746773204548,6.1168,163.51,163.47,6.118]
[1746773204846,6.1168,163.51,163.43,1.9486]
[1746773205047,32.98,163.52,163.43,1.9486]
[1746773205846,6.1168,163.51,163.47,6.1179]
[1746773206148,32.98,163.52,163.43,1.9486]
[1746773206946,6.1174,163.5,163.46,6.1185]
[1746773207849,6.1175,163.49,163.46,6.1185]
[1746773208950,6.1175,163.49,163.46,6.1186]
[1746773209250,6.06218415,163.51,163.43,1.9486]
[1746773209449,6.06218415,163.51,163.4,153.98074089]
[1746773209648,6.1185,163.47,163.43,6.1195]
[1746773209844,33.04,163.48,163.43,6.1195]
[1746773210550,33.04,163.48,163.4,121.06074089]
[1746773210754,39.10218415,163.48,163.38,5.9226]
[1746773210951,32.92,163.47,163.38,38.8426]
[1746773211453,6.1189,163.45,163.4,6.1206]
[1746773211846,6.1189,163.45,163.41,6.1204]
[1746773212151,6.1189,163.45,163.38,38.8426]
[1746773212454,6.1189,163.45,163.4,6.1206]
[1746773214655,6.1189,163.45,163.41,6.1204]
[1746773216156,6.1189,163.45,163.4,6.1207]
[1746773217255,6.1189,163.45,163.41,6.1204]
[1746773219261,6.1189,163.45,163.42,6.12]
[1746773219565,6.1189,163.45,163.38,5.9226]
[1746773219866,6.1189,163.45,163.41,6.1202]
[1746773220466,6.1189,163.45,163.4,6.1207]
[1746773220867,6.1197,163.44,163.4,6.1207]
[1746773221069,32.92,163.47,163.4,6.1207]
[1746773221978,6.1196,163.44,163.4,6.1207]
[1746773222270,32.92,163.47,163.4,6.1207]
[1746773222472,6.1198,163.43,163.38,5.9226]
[1746773223575,6.1198,163.43,163.4,6.1206]
[1746773223978,6.1198,163.43,163.38,5.9226]
[1746773224475,6.1198,163.43,163.39,7.121]
[1746773224677,6.1198,163.43,163.39,1.0]
[1746773225777,6.1198,163.43,163.39,7.121]
[1746773225973,6.1198,163.43,163.39,1.0]
[1746773226674,6.1202,163.42,163.39,1.0]
[1746773227074,6.1208,163.41,163.39,1.0]
[1746773227477,32.78,163.43,163.39,1.0]
[1746773227874,6.1208,163.4,163.39,1.0]
[1746773233883,32.78,163.43,163.39,1.0]
[1746773234279,6.1201,163.42,163.39,7.1212]
[1746773234582,32.78,163.43,163.39,1.0]
[1746773234984,32.78,163.43,163.4,6.1207]
[1746773235286,32.78,163.43,163.39,1.0]
[1746773235584,32.78,163.43,163.4,6.1207]
[1746773236479,38.8997,163.43,163.39,7.1211]
[1746773236679,38.8997,163.43,163.39,1.0]
[1746773237383,38.8997,163.43,163.4,6.1206]
[1746773237585,32.78,163.43,163.39,1.0]
[1746773238084,32.78,163.43,163.4,6.1206]
[1746773238884,38.8999,163.43,163.4,6.1206]
[1746773239385,32.78,163.47,163.39,1.0]
[1746773239584,32.78,163.47,163.4,5.9905]
[1746773240986,6.1187,163.46,163.42,6.1198]
[1746773242487,6.119,163.45,163.42,6.1198]
[1746773244689,6.119,163.45,163.41,6.1204]
[1746773244990,6.119,163.45,163.4,5.9905]
[1746773245185,6.119,163.45,163.42,6.1201]
[1746773245392,6.119,163.45,163.4,5.9905]
[1746773245989,6.119,163.45,163.41,6.1203]
[1746773246690,6.1187,163.46,163.42,6.12]
[1746773247090,32.78,163.47,163.42,6.12]
[1746773247790,32.78,163.47,163.44,6.1193]
[1746773247988,32.78,163.51,163.41,6.06218415]
[1746773248394,32.78,163.51,163.45,6.1186]
[1746773249290,6.1175,163.49,163.45,6.1186]
[1746773251594,32.78,163.51,163.4,38.5705]
[1746773252195,6.1185,163.47,163.42,6.1198]
[1746773252390,32.78,163.51,163.42,6.1198]
[1746773252793,6.1188,163.46,163.42,6.1198]
[1746773252989,32.78,163.51,163.42,6.1198]
[1746773253395,6.1189,163.46,163.42,6.1198]
[1746773253693,32.56,163.48,163.4,5.9905]
[1746773254491,6.1187,163.46,163.42,6.1198]
[1746773254689,6.1187,163.46,163.4,5.9905]
[1746773255999,6.1187,163.46,163.42,6.1198]
[1746773257198,6.1187,163.46,163.42,7.1198]
[1746773257498,6.119,163.45,163.42,7.1198]
[1746773258498,32.56,163.48,163.42,7.1198]
[1746773258499,6.1186,163.46,163.42,7.1198]
[1746773259801,6.1186,163.46,163.43,6.1197]
[1746773261299,38.6382,163.47,163.44,6.1193]
[1746773261599,32.52,163.47,163.42,1.0]
[1746773261794,32.52,163.51,163.42,1.0]
[1746773261991,32.52,163.51,163.49,6.1174]
[1746773262595,32.52,163.51,163.5,6.1171]
[1746773263103,32.52,163.51,163.49,6.1173]
[1746773264401,32.52,163.51,163.48,6.1177]
[1746773265998,32.52,163.51,163.44,38.56218415]
[1746773266194,561.08,163.55,163.44,38.56218415]
[1746773266496,567.1952,163.55,163.51,6.1165]
[1746773266701,32.52,163.55,163.44,38.56218415]
[1746773267092,32.52,163.55,163.49,6.1174]
[1746773268105,6.116,163.53,163.49,6.1174]
[1746773268604,6.1164,163.52,163.49,6.1174]
[1746773269606,6.1164,163.52,163.48,6.1177]
[1746773270306,6.1168,163.51,163.47,6.1181]
[1746773271806,6.1172,163.5,163.46,6.1185]
[1746773272709,6.1175,163.49,163.46,6.1185]
[1746773273406,6.1172,163.5,163.47,6.1182]
[1746773274308,6.1172,163.5,163.46,6.1185]
[1746773274502,6.1172,163.5,163.44,64.94]
[1746773274708,6.1168,163.51,163.44,64.94]
[1746773274911,6.1168,163.51,163.47,6.1179]
[1746773277510,6.1168,163.51,163.48,6.1178]
[1746773277712,6.1168,163.51,163.44,64.94]
[1746773278010,6.1171,163.5,163.46,6.1182]
[1746773278412,32.52,163.55,163.44,64.94]
[1746773278605,32.52,163.55,163.44,71.00218415]
[1746773278802,64.9,163.55,163.44,71.00218415]
[1746773279211,6.1159,163.54,163.44,71.00218415]
[1746773279415,64.9,163.55,163.44,71.00218415]
[1746773279809,64.9,163.55,163.5,6.117]
[1746773280012,64.9,163.55,163.44,71.00218415]
[1746773280513,6.116,163.53,163.49,6.1172]
[1746773281510,6.1156,163.54,163.5,6.1171]
[1746773281714,64.9,163.55,163.44,71.00218415]
[1746773282114,6.1156,163.54,163.5,6.1168]
[1746773282820,71.0152,163.55,163.51,6.1166]
[1746773283016,32.52,163.55,163.47,6.06218415]
[1746773283210,32.52,163.55,163.48,5.9645]
[1746773283413,38.6341,163.59,163.53,6.1158]
[1746773283615,32.52,163.59,163.53,6.1158]
[1746773284023,6.1143,163.58,163.53,6.1158]
[1746773284224,32.52,163.59,163.52,6.1162]
[1746773284522,6.1145,163.57,163.52,6.1162]
[1746773285423,6.1145,163.57,163.53,6.1159]
[1746773286316,32.52,163.59,163.54,6.1154]
[1746773286724,32.52,163.59,163.49,64.86]
[1746773288128,38.6338,163.59,163.54,6.1153]
[1746773288321,32.52,163.59,163.5,6.06218415]
[1746773289324,32.52,163.59,163.55,6.1149]
[1746773290228,32.52,163.59,163.56,6.1148]
[1746773291026,38.6338,163.59,163.55,6.1152]
[1746773291633,6.1141,163.58,163.54,6.1155]
[1746773294131,32.52,163.59,163.51,32.28]
[1746773294727,38.6337,163.59,163.55,6.115]
[1746773294925,32.52,163.59,163.55,6.115]
[1746773295128,32.52,163.59,163.51,32.28]
[1746773295331,32.52,163.59,163.56,6.1146]
[1746773297430,560.98,163.63,163.53,6.06218415]
[1746773297626,560.98,163.63,163.54,5.8222]
[1746773297930,6.1126,163.62,163.57,6.1141]
[1746773299327,32.3,163.63,163.56,38.30218415]
[1746773299533,32.3,163.66,163.56,38.30218415]
[1746773299929,32.3,163.66,163.55,32.3]
[1746773299930,38.36218415,163.66,163.55,32.24]
[1746773300130,1.9079,163.65,163.55,32.24]
[1746773300733,6.1128,163.62,163.57,6.1144]
[1746773300924,6.1128,163.62,163.55,32.24]
[1746773301234,6.1128,163.62,163.57,6.1142]
[1746773301834,6.113,163.61,163.57,6.1142]
[1746773302231,6.113,163.61,163.58,6.114]
[1746773302436,6.1127,163.62,163.58,6.114]
[1746773303238,6.1127,163.62,163.59,6.1137]
[1746773304439,6.1123,163.63,163.59,6.1137]
[1746773304831,1.9079,163.65,163.59,6.1137]
[1746773305042,6.1121,163.64,163.6,6.1132]
[1746773305335,1.9079,163.65,163.6,6.1132]
[1746773305532,1.9079,163.65,163.59,6.1137]
[1746773306038,6.1125,163.63,163.59,6.1137]
[1746773306731,6.1126,163.62,163.59,6.1137]
[1746773307132,1.9079,163.65,163.59,6.1137]
[1746773307435,6.1123,163.63,163.59,6.1137]
[1746773307637,6.1123,163.63,163.6,6.1133]
[1746773309541,6.1119,163.64,163.6,6.1133]
[1746773309734,6.1119,163.64,163.61,6.113]
[1746773310142,6.1116,163.65,163.61,6.113]
[1746773310537,32.3,163.66,163.61,6.113]
[1746773311239,6.1116,163.65,163.61,6.113]
[1746773311437,32.28,163.71,163.61,32.16]
[1746773311636,6.1097,163.7,163.61,38.22218415]
[1746773311842,6.1097,163.7,163.65,6.1111]
[1746773312043,6.1097,163.7,163.61,44.09918415]
[1746773312542,6.1097,163.7,163.65,6.1112]
[1746773313040,38.3893,163.71,163.61,44.09918415]
[1746773313241,32.28,163.71,163.65,6.1113]
[1746773313440,32.28,163.71,163.61,38.037]
[1746773313734,6.1101,163.69,163.64,6.1116]
[1746773314246,6.1101,163.69,163.61,38.037]
[1746773315146,6.1097,163.7,163.61,38.037]
[1746773315639,6.1097,163.7,163.65,6.1112]
[1746773316145,32.28,163.71,163.65,6.1112]
[1746773316545,6.11,163.69,163.65,6.1112]
[1746773316744,32.28,163.71,163.65,6.1112]
[1746773317045,6.1097,163.7,163.65,6.1112]
[1746773317347,6.1097,163.7,163.66,6.1111]
[1746773317845,6.1097,163.7,163.61,38.037]
[1746773318043,6.11,163.69,163.65,6.1114]
[1746773318244,32.28,163.71,163.61,38.037]
[1746773318642,360.874,163.74,163.63,6.06218415]
[1746773319046,6.1095,163.71,163.66,6.1108]
[1746773319240,6.1095,163.71,163.63,6.06218415]
[1746773319446,358.9816,163.74,163.63,6.06218415]
[1746773319648,6.1089,163.72,163.65,1.0]
[1746773319847,357.0,163.74,163.65,1.0]
[1746773320242,6.1093,163.71,163.67,6.1104]
[1746773320547,357.0,163.74,163.65,1.0]
[1746773320847,6.1091,163.72,163.65,1.0]
[1746773321344,6.1086,163.73,163.65,1.0]
[1746773321545,6.1086,163.73,163.66,32.14]
[1746773321939,32.14,163.75,163.66,32.14]
[1746773322137,32.14,163.75,163.67,5.9385]
[1746773322541,32.14,163.75,163.71,6.1089]
[1746773323244,38.2478,163.75,163.7,6.1095]
[1746773324153,6.1081,163.74,163.7,6.1095]
[1746773324354,357.0,163.8,163.71,32.14]
[1746773324550,32.12,163.81,163.71,32.14]
[1746773325150,6.06218415,163.8,163.69,32.14]
[1746773325348,4.0777,163.8,163.69,32.14]
[1746773325548,10.13988415,163.8,163.71,6.1089]
[1746773325954,6.108,163.75,163.71,6.1089]
[1746773326155,10.13988415,163.8,163.71,6.1089]
[1746773326556,6.108,163.75,163.71,6.1089]
[1746773326855,32.12,163.76,163.67,5.9385]
[1746773327057,6.1094,163.71,163.67,5.9385]
[1746773327350,6.06218415,163.75,163.67,5.9385]
[1746773327351,6.06218415,163.75,163.67,12.049]
[1746773327551,6.06218415,163.75,163.67,6.1105]
[1746773328055,6.06218415,163.75,163.66,6.111]
[1746773328456,2.0206,163.74,163.66,6.111]
[1746773328957,6.11,163.69,163.66,6.111]
[1746773329254,2.0206,163.74,163.66,6.111]
[1746773329661,6.1099,163.7,163.66,6.111]
[1746773330560,2.0206,163.74,163.66,6.111]
[1746773330561,6.11,163.69,163.66,6.111]
[1746773330757,6.11,163.69,163.65,1.0]
[1746773331262,6.1106,163.68,163.65,1.0]
[1746773331560,32.12,163.71,163.65,1.0]
[1746773331858,6.1106,163.68,163.65,1.0]
[1746773332059,32.12,163.71,163.65,1.0]
[1746773333458,32.12,163.71,163.65,7.1115]
[1746773334062,32.12,163.71,163.68,6.1102]
[1746773337567,32.12,163.71,163.69,6.1099]
[1746773338577,32.12,163.71,163.7,6.1096]
[1746773338779,32.12,163.74,163.7,6.1096]
[1746773339277,38.2284,163.74,163.7,6.1096]
[1746773339878,6.1087,163.73,163.69,6.1099]
[1746773340074,6.1087,163.73,163.66,38.1255]
[1746773340274,32.12,163.75,163.66,38.1255]
[1746773342880,6.1088,163.73,163.69,6.1097]
[1746773343080,32.12,163.75,163.66,38.1255]
[1746773343478,6.1082,163.74,163.66,38.1255]
[1746773343881,6.1082,163.74,163.69,6.1096]
[1746773344081,6.1087,163.73,163.69,6.1096]
[1746773344781,6.1087,163.73,163.7,6.1096]
[1746773344980,6.1087,163.73,163.66,38.1255]
[1746773345481,6.1082,163.74,163.66,38.1255]
[1746773345676,32.12,163.75,163.69,6.1097]
[1746773346077,6.1085,163.73,163.66,38.1255]
[1746773346278,32.12,163.75,163.66,38.1255]
[1746773346683,6.1084,163.74,163.66,38.1255]
[1746773347683,6.1086,163.73,163.66,38.1255]
[1746773348186,6.1086,163.73,163.7,6.1096]
[1746773348884,6.1082,163.74,163.7,6.1096]
[1746773349378,6.1085,163.73,163.7,6.1096]
[1746773350181,6.1085,163.73,163.66,38.1255]
[1746773350182,6.1085,163.73,163.69,6.1098]
[1746773350388,6.1089,163.72,163.66,38.1255]
[1746773350588,38.18218415,163.75,163.66,6.0055]
[1746773350785,38.18218415,163.75,163.66,6.111]
[1746773350987,6.1098,163.7,163.66,6.111]
[1746773351185,38.18218415,163.75,163.65,33.12]
[1746773351386,6.1102,163.69,163.65,1.0]
[1746773351685,38.18218415,163.75,163.65,1.0]
[1746773351888,38.18218415,163.75,163.67,6.1106]
[1746773352086,38.18218415,163.75,163.65,1.0]
[1746773352978,6.1089,163.72,163.68,6.1103]
[1746773353788,6.1093,163.71,163.68,6.1103]
[1746773353987,38.18218415,163.75,163.65,1.0]
[1746773354488,527.98,163.76,163.71,6.109]
[1746773354792,32.1,163.75,163.71,6.109]
[1746773354982,6.1082,163.74,163.71,6.109]
[1746773355387,6.1085,163.73,163.71,6.109]
[1746773355589,592.18,163.76,163.66,37.9845]
[1746773356187,6.1083,163.74,163.66,37.9845]
[1746773356785,6.1086,163.73,163.7,6.1093]
[1746773356983,560.08,163.76,163.66,37.9845]
[1746773357184,592.18,163.76,163.71,6.1089]
[1746773357385,560.08,163.76,163.67,32.1]
[1746773357786,560.08,163.76,163.7,6.1093]
[1746773358091,6.1083,163.74,163.7,6.1093]
[1746773359084,560.08,163.76,163.7,6.1093]
[1746773359292,560.08,163.76,163.68,6.1101]
[1746773359789,560.08,163.76,163.69,6.1099]
[1746773360089,560.08,163.76,163.67,32.1]
[1746773360286,6.06218415,163.75,163.66,44.0956]
[1746773360589,6.06218415,163.75,163.66,38.2111]
[1746773360790,6.06218415,163.75,163.67,6.1107]
[1746773361191,6.1099,163.7,163.66,32.1]
[1746773361392,6.06218415,163.75,163.66,38.211]
[1746773361691,32.1,163.74,163.66,38.211]
[1746773363793,32.1,163.74,163.66,6.111]
[1746773364092,6.1099,163.7,163.66,6.111]
[1746773364594,32.1,163.74,163.66,6.111]
[1746773364996,32.1,163.74,163.65,7.1114]
[1746773365295,32.1,163.74,163.65,1.0]
[1746773365693,32.1,163.74,163.66,6.1109]
[1746773365897,6.1098,163.7,163.66,6.1109]
[1746773366191,32.1,163.74,163.66,6.1109]
[1746773366392,6.1087,163.73,163.65,1.0]
[1746773366897,38.1881,163.74,163.65,1.0]
[1746773367197,32.08,163.74,163.65,1.0]
[1746773367799,560.08,163.76,163.66,6.06218415]
[1746773368189,6.108,163.75,163.71,6.1092]
[1746773368798,6.1082,163.74,163.71,6.1092]
[1746773369301,6.1078,163.75,163.71,6.1092]
[1746773369696,64.18,163.78,163.68,32.08]
[1746773369895,64.18,163.78,163.68,34.1228]
[1746773370591,6.1077,163.75,163.71,6.109]
[1746773371098,6.1083,163.74,163.7,6.1095]
[1746773371298,6.1083,163.74,163.68,34.1228]
[1746773371499,64.18,163.78,163.68,34.1228]
[1746773371695,64.18,163.78,163.7,6.1096]
[1746773373197,6.1084,163.74,163.71,6.1092]
[1746773375095,64.18,163.78,163.68,34.1228]
[1746773376005,6.1077,163.75,163.71,6.1092]
[1746773376195,64.18,163.78,163.68,34.1228]
[1746773376595,6.1074,163.76,163.73,6.1081]
[1746773376900,32.1,163.78,163.69,6.06218415]
[1746773377400,6.1073,163.77,163.69,6.06218415]
[1746773377698,32.1,163.78,163.69,6.06218415]
[1746773378095,38.2067,163.78,163.69,6.06218415]
[1746773378297,64.16,163.82,163.69,6.06218415]
[1746773378497,8.43328415,163.87,163.72,6.06218415]
[1746773378698,8.43328415,163.87,163.73,68.0994]
[1746773379000,6.1059,163.8,163.73,68.0994]
[1746773379202,8.43328415,163.87,163.74,2.065]
[1746773379501,32.06,163.86,163.74,2.065]
[1746773380003,6.1052,163.82,163.74,2.065]
[1746773380299,32.1,163.88,163.75,6.06218415]
[1746773380499,32.1,163.88,163.78,6.06218415]
[1746773380699,32.1,163.88,163.79,68.1306]
[1746773380897,6.1034,163.87,163.83,6.1047]
[1746773381303,6.1037,163.86,163.82,6.105]
[1746773381503,32.04,163.89,163.82,6.105]
[1746773381698,32.04,163.89,163.79,68.1306]
[1746773382096,32.04,163.89,163.79,32.06]
[1746773382303,6.1057,163.81,163.77,6.1067]
[1746773382502,32.06,163.85,163.75,64.1]
[1746773382799,6.1053,163.82,163.78,6.1066]
[1746773383005,32.06,163.85,163.78,6.1066]
[1746773383607,32.06,163.85,163.77,6.1069]
[1746773384006,32.04,163.84,163.77,6.1069]
[1746773384206,6.1058,163.81,163.78,6.1066]
[1746773384506,32.04,163.84,163.76,1.9357]
[1746773384705,32.04,163.84,163.77,6.1069]